fUSD/lending_fUSD_20241221
["ID","MTS","AMOUNT","RATE_DAILY","PERIOD"]
[346237271,1734796241751,-500.0,0.00020546,2]
[346237272,1734796241761,-500.0,0.00020546,2]
[346237273,1734796241771,-500.0,0.00020546,2]
[346237274,1734796241780,-500.0,0.00020546,2]
[346237275,1734796241789,-815.578524,0.00020546,2]
[346237276,1734796241799,-1142.24,0.00020546,2]
[346237277,1734796241808,-500.0,0.00020546,2]
[346237278,1734796241818,-504.89847615,0.00020546,2]
[346237279,1734796241827,-500.0,0.00020546,2]
[346237280,1734796241837,-500.0,0.00020546,2]
[346237281,1734796241846,-635.7,0.00020546,2]
[346237282,1734796241857,-200.0,0.00020546,2]
[346237283,1734796241867,-7500.0,0.00020546,2]
[346237284,1734796241877,-500.0,0.00020546,2]
[346237285,1734796241887,-500.0,0.00020546,2]
[346237286,1734796241896,-500.0,0.00020546,2]
[346237287,1734796241907,-500.0,0.00020546,2]
[346237288,1734796241916,-500.0,0.00020546,2]
[346237289,1734796241926,-500.0,0.00020546,2]
[346237290,1734796241935,-500.0,0.00020546,2]
[346237291,1734796241944,-500.0,0.00020546,2]
[346237292,1734796241955,-500.0,0.00020546,2]
[346237293,1734796241966,-509.53,0.00020546,2]
[346237294,1734796241975,-507.92352369,0.00020546,2]
[346237295,1734796241985,-503.97444995,0.00020546,2]
[346237296,1734796241995,-500.0,0.00020546,2]
[346237297,1734796242004,-618.38,0.00020546,2]
[346237298,1734796242014,-500.0,0.00020546,2]
[346237299,1734796242023,-500.0,0.00020546,2]
[346237300,1734796242033,-437.80994721,0.00020546,2]
[346237301,1734796242043,-506.27580987,0.00020546,2]
[346237302,1734796242052,-500.0,0.00020546,2]
[346237303,1734796242062,-500.0,0.00020546,2]
[346237304,1734796242071,-500.0,0.00020546,2]
[346237305,1734796242080,-500.0,0.00020546,2]
[346237306,1734796242090,-500.0,0.00020546,2]
[346237307,1734796242100,-833.3,0.00020546,2]
[346237308,1734796242110,-500.0,0.00020546,2]
[346237309,1734796242120,-978.0,0.00020546,2]
[346237310,1734796242130,-500.0,0.00020546,2]
[346237311,1734796242141,-500.0,0.00020546,2]
[346237312,1734796242151,-500.0,0.00020546,2]
[346237313,1734796242161,-500.0,0.00020546,2]
[346237314,1734796242171,-500.0,0.00020546,2]
[346237315,1734796242180,-500.0,0.00020546,2]
[346237316,1734796242190,-500.0,0.00020546,2]
[346237317,1734796242200,-500.0,0.00020546,2]
[346237318,1734796242209,-500.0,0.00020546,2]
[346237319,1734796242219,-500.0,0.00020546,2]
[346237320,1734796242228,-594.04,0.00020546,2]
[346237321,1734796242238,-1927.82,0.00020546,2]
[346237322,1734796242247,-500.0,0.00020546,2]
[346237323,1734796242257,-500.0,0.00020546,2]
[346237324,1734796242266,-500.0,0.00020546,2]
[346237325,1734796242276,-500.0,0.00020546,2]
[346237326,1734796242287,-500.0,0.00020546,2]
[346237327,1734796242296,-500.0,0.00020546,2]
[346237328,1734796242306,-2122.1,0.00020546,2]
[346237329,1734796242316,-1051.15,0.00020546,2]
[346237330,1734796242325,-500.0,0.00020546,2]
[346237331,1734796242335,-500.0,0.00020546,2]
[346237332,1734796242345,-500.0,0.00020546,2]
[346237333,1734796242358,-500.0,0.00020546,2]
[346237334,1734796242368,-505.63855277,0.00020546,2]
[346237336,1734796242377,-500.0,0.00020546,2]
[346237337,1734796242387,-500.0,0.00020546,2]
[346237338,1734796242396,-500.0,0.00020546,2]
[346237339,1734796242406,-502.36340621,0.00020546,2]
[346237340,1734796242416,-500.0,0.00020546,2]
[346237341,1734796242425,-3745.38,0.00020546,2]
[346237342,1734796242435,-503.64605099,0.00020546,2]
[346237343,1734796242445,-500.0,0.00020546,2]
[346237344,1734796242456,-500.0,0.00020546,2]
[346237345,1734796242465,-500.0,0.00020546,2]
[346237346,1734796242474,-500.0,0.00020546,2]
[346237347,1734796242484,-500.0,0.00020546,2]
[346237348,1734796242494,-500.0,0.00020546,2]
[346237349,1734796242503,-1846.43,0.00020546,2]
[346237350,1734796242512,-500.0,0.00020546,2]
[346237351,1734796242522,-500.0,0.00020546,2]
[346237352,1734796242530,-700.14,0.00020546,2]
[346237353,1734796242540,-500.0,0.00020546,2]
[346237354,1734796242549,-500.0,0.00020546,2]
[346237355,1734796242558,-500.0,0.00020546,2]
[346237356,1734796242567,-500.0,0.00020546,2]
[346237357,1734796242576,-500.0,0.00020546,2]
[346237358,1734796242586,-500.0,0.00020546,2]
[346237359,1734796242594,-500.0,0.00020546,2]
[346237360,1734796242606,-3004.23,0.00020546,2]
[346237361,1734796242615,-500.0,0.00020546,2]
[346237362,1734796242625,-500.0,0.00020546,2]
[346237363,1734796242634,-500.0,0.00020546,2]
[346237364,1734796242647,-500.0,0.00020546,2]
[346237365,1734796242656,-500.0,0.00020546,2]
[346237366,1734796242665,-500.0,0.00020546,2]
[346237367,1734796242675,-500.0,0.00020546,2]
[346237368,1734796242686,-500.0,0.00020546,2]
[346237369,1734796242695,-500.0,0.00020546,2]
[346237370,1734796242705,-500.0,0.00020546,2]
[346237371,1734796242715,-500.0,0.00020546,2]
[346237372,1734796242726,-500.0,0.00020546,2]
[346237373,1734796242735,-500.0,0.00020546,2]
[346237374,1734796242745,-500.0,0.00020546,2]
[346237375,1734796242755,-500.0,0.00020546,2]
[346237376,1734796242765,-500.0,0.00020546,2]
[346237377,1734796242774,-500.0,0.00020546,2]
[346237378,1734796242784,-500.0,0.00020546,2]
[346237379,1734796242794,-500.0,0.00020546,2]
[346237380,1734796242803,-500.0,0.00020546,2]
[346237381,1734796242812,-500.0,0.00020546,2]
[346237382,1734796242823,-500.0,0.00020546,2]
[346237383,1734796242832,-500.0,0.00020546,2]
[346237384,1734796242842,-500.0,0.00020546,2]
[346237385,1734796242853,-500.0,0.00020546,2]
[346237386,1734796242862,-500.0,0.00020546,2]
[346237387,1734796242871,-500.0,0.00020546,2]
[346237388,1734796242881,-500.0,0.00020546,2]
[346237389,1734796242891,-500.0,0.00020546,2]
[346237390,1734796242901,-500.0,0.00020546,2]
[346237391,1734796242911,-528.12,0.00020546,2]
[346237392,1734796242921,-500.0,0.00020546,2]
[346237393,1734796242931,-500.0,0.00020546,2]
[346237394,1734796242941,-500.0,0.00020546,2]
[346237395,1734796242950,-500.0,0.00020546,2]
[346237396,1734796242960,-500.0,0.00020546,2]
[346237397,1734796242971,-500.0,0.00020546,2]
[346237398,1734796242980,-500.0,0.00020546,2]
[346237399,1734796242990,-500.0,0.00020546,2]
[346237400,1734796243000,-502.01981705,0.00020546,2]
[346237401,1734796243010,-463.14472422,0.00020546,2]
[346237402,1734796243020,-500.0,0.00020546,2]
[346237403,1734796243029,-500.0,0.00020546,2]
[346237404,1734796243039,-500.0,0.00020546,2]
[346237405,1734796243048,-500.0,0.00020546,2]
[346237406,1734796243058,-500.0,0.00020546,2]
[346237407,1734796243069,-500.0,0.00020546,2]
[346237408,1734796243079,-238.10866645,0.00020546,2]
[346237409,1734796243092,-500.0,0.00020546,2]
[346237410,1734796243106,-150.0,0.00020547,2]
[346237411,1734796243116,-150.0,0.00020547,2]
[346237412,1734796243127,-150.0,0.00020547,2]
[346237414,1734796243136,-1177.0,0.00020547,2]
[346237415,1734796243147,-756.0,0.00020547,2]
[346237416,1734796243157,-500.0,0.00020547,2]
[346237417,1734796243167,-500.0,0.00020547,2]
[346237418,1734796243177,-500.0,0.00020547,2]
[346237419,1734796243187,-500.0,0.00020547,2]
[346237420,1734796243197,-500.0,0.00020547,2]
[346237422,1734796243207,-500.0,0.00020547,2]
[346237424,1734796243216,-500.0,0.00020547,2]
[346237425,1734796243227,-500.0,0.00020547,2]
[346237426,1734796243237,-500.0,0.00020547,2]
[346237427,1734796243247,-500.0,0.00020547,2]
[346237428,1734796243257,-500.0,0.00020547,2]
[346237429,1734796243267,-500.0,0.00020547,2]
[346237430,1734796243278,-547.36,0.00020547,2]
[346237431,1734796243287,-500.0,0.00020547,2]
[346237432,1734796243298,-500.0,0.00020547,2]
[346237433,1734796243308,-500.0,0.00020547,2]
[346237434,1734796243318,-609.75,0.00020547,2]
[346237436,1734796243327,-500.0,0.00020547,2]
[346237437,1734796243338,-536.56,0.00020547,2]
[346237438,1734796243348,-500.0,0.00020547,2]
[346237439,1734796243363,-500.0,0.00020547,2]
[346237440,1734796243374,-635.87,0.00020547,2]
[346237441,1734796243384,-500.0,0.00020547,2]
[346237442,1734796243396,-500.0,0.00020547,2]
[346237443,1734796243406,-500.0,0.00020547,2]
[346237444,1734796243416,-500.0,0.00020547,2]
[346237445,1734796243426,-500.0,0.00020547,2]
[346237446,1734796243436,-500.0,0.00020547,2]
[346237447,1734796243446,-500.0,0.00020547,2]
[346237448,1734796243456,-605.2,0.00020547,2]
[346237449,1734796243466,-500.0,0.00020547,2]
[346237450,1734796243476,-389.87976971,0.00020547,2]
[346237451,1734796243486,-500.0,0.00020547,2]
[346237452,1734796243497,-782.78,0.00020547,2]
[346237453,1734796243508,-500.0,0.00020547,2]
[346237454,1734796243518,-500.0,0.00020547,2]
[346237455,1734796243529,-500.0,0.00020547,2]
[346237456,1734796243539,-1000.0,0.00020547,3]
[346237457,1734796243550,-1000.0,0.00020547,3]
[346237458,1734796243560,-1000.0,0.00020547,3]
[346237459,1734796243570,-1157.79,0.00020547,2]
[346237460,1734796243580,-1000.0,0.00020547,3]
[346237461,1734796243590,-500.0,0.00020547,2]
[346237462,1734796243601,-1000.0,0.00020547,3]
[346237463,1734796243611,-1000.0,0.00020547,3]
[346237464,1734796243621,-1222.68,0.00020547,2]
[346237465,1734796243631,-869.91,0.00020547,2]
[346237466,1734796243640,-860.27,0.00020547,2]
[346237467,1734796243653,-500.0,0.00020547,2]
[346237468,1734796243663,-1456.24,0.00020547,2]
[346237469,1734796243672,-500.0,0.00020547,2]
[346237470,1734796243683,-500.0,0.00020547,2]
[346237471,1734796243692,-500.0,0.00020547,2]
[346237472,1734796243702,-1139.89,0.00020547,2]
[346237473,1734796243711,-500.0,0.00020547,2]
[346237474,1734796243723,-2048.69,0.00020547,2]
[346237475,1734796243734,-528.22,0.00020547,2]
[346237476,1734796243743,-500.0,0.00020547,2]
[346237477,1734796243753,-500.0,0.00020547,2]
[346237478,1734796243762,-500.0,0.00020547,2]
[346237479,1734796243772,-907.36,0.00020547,2]
[346237480,1734796243781,-500.0,0.00020547,2]
[346237481,1734796243791,-534.47,0.00020547,2]
[346237482,1734796243802,-559.88,0.00020547,2]
[346237483,1734796243811,-763.58,0.00020547,2]
[346237484,1734796243826,-647.95,0.00020547,2]
[346237485,1734796243836,-500.0,0.00020547,2]
[346237486,1734796243846,-500.0,0.00020547,2]
[346237487,1734796243858,-500.0,0.00020547,2]
[346237488,1734796243867,-516.96,0.00020547,2]
[346237489,1734796243877,-500.0,0.00020547,2]
[346237490,1734796243886,-500.0,0.00020547,2]
[346237491,1734796243895,-589.95,0.00020547,2]
[346237492,1734796243905,-500.0,0.00020547,2]
[346237493,1734796243914,-561.17,0.00020547,2]
[346237494,1734796243923,-500.0,0.00020547,2]
[346237495,1734796243933,-2514.56,0.00020547,2]
[346237496,1734796243942,-500.0,0.00020547,2]
[346237497,1734796243951,-500.0,0.00020547,2]
[346237498,1734796243960,-500.0,0.00020547,2]
[346237499,1734796243969,-633.77,0.00020547,2]
[346237500,1734796243979,-500.0,0.00020547,2]
[346237501,1734796243988,-513.46,0.00020547,2]
[346237502,1734796243998,-550.66,0.00020547,2]
[346237503,1734796244007,-500.0,0.00020547,2]
[346237504,1734796244016,-596.74,0.00020547,2]
[346237505,1734796244026,-500.0,0.00020547,2]
[346237506,1734796244035,-1005.55,0.00020547,2]
[346237507,1734796244044,-500.0,0.00020547,2]
[346237508,1734796244054,-500.0,0.00020547,2]
[346237509,1734796244063,-857.74,0.00020547,2]
[346237510,1734796244072,-500.0,0.00020547,2]
[346237511,1734796244081,-500.0,0.00020547,2]
[346237512,1734796244092,-1224.02,0.00020547,2]
[346237513,1734796244103,-1000.0,0.00020547,2]
[346237514,1734796244113,-500.0,0.00020547,2]
[346237515,1734796244123,-1228.78,0.00020547,2]
[346237516,1734796244132,-500.0,0.00020547,2]
[346237517,1734796244141,-500.0,0.00020547,2]
[346237518,1734796244153,-637.27,0.00020547,2]
[346237519,1734796244162,-500.0,0.00020547,2]
[346237520,1734796244172,-500.0,0.00020547,2]
[346237521,1734796244182,-1081.6,0.00020547,2]
[346237522,1734796244191,-500.0,0.00020547,2]
[346237523,1734796244201,-500.0,0.00020547,2]
[346237524,1734796244210,-806.71,0.00020547,2]
[346237525,1734796244222,-536.6,0.00020547,2]
[346237526,1734796244231,-535.71,0.00020547,2]
[346237527,1734796244241,-500.0,0.00020547,2]
[346237528,1734796244251,-590.36,0.00020547,2]
[346237529,1734796244260,-500.0,0.00020547,2]
[346237530,1734796244270,-748.14,0.00020547,2]
[346237531,1734796244280,-543.36,0.00020548,2]
[346237532,1734796244290,-150.0,0.00020553,4]
[346237533,1734796244304,-150.0,0.00020565,4]
[346237534,1734796244314,-615.64936105,0.00020569,2]
[346237535,1734796244323,-3775.47733555,0.00020582,2]
[346237536,1734796244333,-202.0,0.0002059,2]
[346237537,1734796244342,-202.0,0.0002059,2]
[346237538,1734796244353,-303.43953929,0.00020594,2]
[346237539,1734796244363,-150.0,0.00020597,4]
[346237540,1734796244372,-588.49,0.00020599,2]
[346237541,1734796244382,-47381.4045028,0.000206,2]
[346237542,1734796244399,-3550.24070873,0.000206,2]
[346237543,1734796244414,-10049.0,0.000206,2]
[346237544,1734796244426,-618.21314566,0.000206,2]
[346237545,1734796244437,-2725.69185267,0.000206,2]
[346237546,1734796244448,-448.38590459,0.000206,2]
[346237550,1734796245240,543.85,0.00019178,2]
[346237551,1734796245498,15920.17070417,0.00019132,2]
[346237557,1734796246596,645.21,0.00019178,2]
[346237558,1734796246613,-500.0,0.00020072,2]
[346237559,1734796246623,-500.0,0.00020272,2]
[346237560,1734796246788,-500.0,0.00020346,2]
[346237561,1734796246824,-500.0,0.00020546,2]
[346237562,1734796246833,-500.0,0.00020546,2]
[346237563,1734796246843,-500.0,0.00020546,2]
[346237564,1734796246853,-500.0,0.00020546,2]
[346237566,1734796246863,-1258.28340549,0.000206,2]
[346237622,1734796280941,-256.48,0.00020345,2]
[346237623,1734796280976,645.21,0.00019452,2]
[346237624,1734796281021,167.0,0.00019895,2]
[346237625,1734796281095,645.21,0.00019726,2]
[346237626,1734796281128,1179.32,0.00019178,2]
[346237627,1734796281171,645.21,0.0002,2]
[346237628,1734796281209,1179.32,0.00019452,2]
[346237629,1734796281537,1179.32,0.00019726,2]
[346237630,1734796281600,1179.32,0.0002,2]
[346237631,1734796282027,157.518,0.00019895,2]
[346237632,1734796282091,12055.53429757,0.00019132,2]
[346237633,1734796282627,300.0,0.00019131,2]
[346237634,1734796283243,250.0,0.00019677,2]
[346237635,1734796283289,2009.0,0.0002,2]
[346237636,1734796284469,1000.0,0.00019627,2]
[346237637,1734796289888,1493.33,0.0002,2]
[346237638,1734796299189,1049.72076869,0.000196,2]
[346237639,1734796310722,500.0,0.00019178,2]
[346237640,1734796310963,500.0,0.00019452,2]
[346237641,1734796311301,500.0,0.00019726,2]
[346237642,1734796311635,500.0,0.0002,2]
[346237643,1734796318789,1885.92,0.00019178,2]
[346237644,1734796319058,1885.92,0.00019452,2]
[346237645,1734796319332,1885.92,0.00019726,2]
[346237646,1734796319626,1885.92,0.0002,2]
[346237647,1734796322432,2278.0,0.000193,2]
[346237648,1734796322881,2050.0,0.000193,2]
[346237649,1734796327420,500.0,0.00019178,2]
[346237650,1734796327670,500.0,0.00019452,2]
[346237651,1734796327935,500.0,0.00019726,2]
[346237652,1734796328577,500.0,0.0002,2]
[346237653,1734796333108,1000.0,0.0002,20]
[346237654,1734796333527,500.0,0.00019178,2]
[346237655,1734796333792,500.0,0.00019452,2]
[346237656,1734796334157,500.0,0.00019726,2]
[346237657,1734796334478,500.0,0.0002,2]
[346237658,1734796349215,754.17,0.00019178,2]
[346237659,1734796349473,754.17,0.00019452,2]
[346237660,1734796349754,754.17,0.00019726,2]
[346237661,1734796350045,754.17,0.0002,2]
[346237662,1734796359454,500.0,0.00019178,2]
[346237663,1734796359716,500.0,0.00019452,2]
[346237664,1734796359967,500.0,0.00019726,2]
[346237665,1734796360230,500.0,0.0002,2]
[346237666,1734796365202,1111.41433018,0.000196,2]
[346237667,1734796375067,1000.0,0.00019178,2]
[346237668,1734796375317,1000.0,0.00019452,2]
[346237669,1734796375566,162.86290168,0.00019726,2]
[346237670,1734796377565,500.0,0.00019178,2]
[346237671,1734796377828,500.0,0.00019452,2]
[346237672,1734796378133,500.0,0.00019726,2]
[346237673,1734796378360,567.82107587,0.0002,2]
[346237674,1734796386712,500.0,0.00019178,2]
[346237675,1734796386951,500.0,0.00019452,2]
[346237676,1734796387227,500.0,0.00019726,2]
[346237677,1734796387484,500.0,0.0002,2]
[346237678,1734796401969,900.0,0.00019177,2]
[346237679,1734796405290,605.04,0.00019178,2]
[346237680,1734796405548,605.04,0.00019452,2]
[346237681,1734796405832,605.04,0.00019726,2]
[346237682,1734796406160,605.04,0.0002,2]
[346237683,1734796413168,500.0,0.00019987,2]
[346237684,1734796425936,3618.588215,0.000198,2]
[346237685,1734796426686,2000.0,0.0002,2]
[346237686,1734796447278,1109.63077793,0.000196,2]
[346237687,1734796457892,1703.24025822,0.0001992,2]
[346237688,1734796458210,1703.24025822,0.00019972,2]
[346237689,1734796474949,1344.0,0.0002,2]
[346237690,1734796476355,1779.00224184,0.000196,2]
[346237691,1734796509807,250.0,0.00019589,2]
[346237692,1734796513354,1170.0,0.000199,2]
[346237693,1734796517856,13754.0,0.000199,2]
[346237694,1734796517988,1917.92,0.00019593,2]
[346237695,1734796518244,1917.92,0.00019598,2]
[346237696,1734796518849,1917.92,0.00019603,2]
[346237697,1734796518930,1917.92,0.00019608,2]
[346237698,1734796519012,1917.92,0.00019613,2]
[346237699,1734796519145,1917.92,0.00019618,2]
[346237700,1734796519359,1917.92,0.00019624,2]
[346237701,1734796519571,1917.92,0.00019629,2]
[346237702,1734796519784,1917.92,0.00019634,2]
[346237703,1734796520200,1917.92,0.00019639,2]
[346237704,1734796520595,1917.92,0.00019644,2]
[346237705,1734796520796,1917.92,0.00019649,2]
[346237706,1734796521007,1917.92,0.00019655,2]
[346237707,1734796521199,1917.92,0.0001966,2]
[346237708,1734796521403,1917.92,0.00019665,2]
[346237709,1734796521600,1917.92,0.0001967,2]
[346237710,1734796521829,1917.92,0.00019675,2]
[346237711,1734796522025,1917.92,0.0001968,2]
[346237712,1734796522215,1917.92,0.00019685,2]
[346237713,1734796522459,1917.92,0.00019691,2]
[346237714,1734796546546,1500.0,0.00019593,2]
[346237715,1734796572668,824.22,0.00019573,2]
[346237716,1734796575929,664.309,0.0001957,2]
[346237717,1734796625389,200.0,0.00019556,2]
[346237719,1734796652616,631.13,0.00019552,2]
[346237720,1734796660624,1209.6,0.0002,2]
[346237721,1734796662244,768.28,0.00019699,2]
[346237724,1734796682468,250.0,0.00019516,2]
[346237726,1734796698783,177.78,0.00010137,2]
[346237728,1734796717338,150.0,0.0002,2]
[346237729,1734796739086,338.4,0.00019455,2]
[346237730,1734796751865,615.07,0.00017537,2]
[346237731,1734796752085,615.07,0.00019801,2]
[346237732,1734796755691,56032.0,0.0002,2]
[346237733,1734796814778,2010.0,0.000199,2]
[346237734,1734796821012,1265.0,0.000199,2]
[346237735,1734796825521,3886.0,0.000199,2]
[346237736,1734796831831,150.0,0.00019893,2]
[346237737,1734796835937,1088.64,0.0002,2]
[346237738,1734796843568,13754.0,0.00019893,2]
[346237739,1734796849356,1170.0,0.00019903,2]
[346237740,1734796858862,633.0,0.00019903,2]
[346237741,1734796864404,150.0,0.0002,30]
[346237742,1734796865048,565.0,0.00019903,2]
[346237743,1734796871969,150.0,0.00019903,2]
[346237744,1734796893776,3000.0,0.0002,2]
[346237745,1734796894578,1898.0,0.00019903,2]
[346237746,1734796901444,3000.0,0.0002,2]
[346237747,1734796914411,1255.0,0.00019903,2]
[346237748,1734796916242,3000.0,0.0002,2]
[346237749,1734796920060,818.0,0.00019903,2]
[346237750,1734796922608,243.17,0.00019671,30]
[346237751,1734796925057,3000.0,0.0002,2]
[346237752,1734796926038,3769.0,0.00019903,2]
[346237753,1734796932840,925.0,0.00019903,2]
[346237754,1734796946148,3681.0,0.00019903,2]
[346237755,1734796948181,3000.0,0.0002,2]
[346237756,1734796950608,536.0,0.00019903,2]
[346237757,1734796958398,3000.0,0.0002,2]
[346237758,1734796965051,3000.0,0.0002,2]
[346237763,1734797022316,979.77,0.0002,2]
[346237765,1734797042771,242.09139887,0.0002,2]
[346237766,1734797113719,11639.75,0.00019903,2]
[346237767,1734797117454,1170.0,0.00019903,2]
[346237768,1734797160101,1000.0,0.00019391,2]
[346237769,1734797187394,195.05,0.00019393,2]
[346237770,1734797208281,881.8,0.0002,2]
[346237771,1734797222794,3478408.39941578,0.0002,2]
[346237772,1734797249198,636.539,0.0001957,2]
[346237773,1734797395100,793.62,0.0002,2]
[346237774,1734797419690,150.0,0.00019903,2]
[346237775,1734797424149,3886.0,0.00019903,2]
[346237776,1734797428259,410.726,0.00019903,2]
[346237782,1734797431557,-300.0,0.00020009,2]
[346237783,1734797431567,-2000.0,0.0002001,2]
[346237784,1734797431576,-3171.08912538,0.0002001,2]
[346237785,1734797431586,-3929.775566,0.0002002,2]
[346237786,1734797431595,-220.955,0.00020071,2]
[346237787,1734797431605,-4123.4445623,0.00020071,2]
[346237788,1734797431615,-283.9284377,0.00020071,2]
[346237789,1734797431625,-500.0,0.00020072,2]
[346237790,1734797431634,-500.0,0.00020072,2]
[346237791,1734797431643,-500.0,0.00020072,2]
[346237792,1734797431652,-0.16577009,0.00020072,2]
[346237793,1734797431664,-982.59422991,0.00020072,2]
[346237794,1734797431673,-165.6,0.00020102,2]
[346237795,1734797431683,-195.84593955,0.00020137,2]
[346237796,1734797431692,-500.0,0.00020138,2]
[346237797,1734797431703,-538.7824,0.00020172,2]
[346237798,1734797431713,-1101.65835335,0.00020188,2]
[346237799,1734797431722,-150.0,0.00020244,4]
[346237800,1734797431731,-150.0,0.00020244,4]
[346237801,1734797431740,-150.0,0.00020244,4]
[346237802,1734797431749,-150.0,0.00020244,4]
[346237803,1734797431758,-231.21625263,0.00020244,4]
[346237804,1734797431767,-151.03660206,0.00020244,4]
[346237805,1734797431776,-150.0,0.00020244,4]
[346237806,1734797431785,-848.1009,0.00020246,2]
[346237807,1734797431794,-195.84593955,0.00020247,2]
[346237808,1734797431803,-2098.7297,0.00020247,2]
[346237809,1734797431813,-500.0,0.00020272,2]
[346237810,1734797431822,-500.0,0.00020272,2]
[346237811,1734797431831,-500.0,0.00020272,2]
[346237812,1734797431840,-514.93,0.00020272,2]
[346237813,1734797431850,-671.17,0.00020272,2]
[346237814,1734797431859,-500.0,0.00020272,2]
[346237815,1734797431868,-500.0,0.00020272,2]
[346237816,1734797431878,-500.0,0.00020272,2]
[346237817,1734797431887,-500.0,0.00020272,2]
[346237818,1734797431896,-500.0,0.00020272,2]
[346237819,1734797431905,-500.0,0.00020272,2]
[346237820,1734797431914,-500.0,0.00020272,2]
[346237821,1734797431923,-500.0,0.00020272,2]
[346237822,1734797431931,-500.0,0.00020272,2]
[346237823,1734797431940,-500.0,0.00020272,2]
[346237824,1734797431952,-500.0,0.00020272,2]
[346237825,1734797431960,-500.0,0.00020272,2]
[346237826,1734797431971,-500.0,0.00020272,2]
[346237827,1734797431981,-546.9,0.00020272,2]
[346237828,1734797431992,-500.0,0.00020272,2]
[346237830,1734797432001,-500.0,0.00020272,2]
[346237831,1734797432010,-500.0,0.00020272,2]
[346237832,1734797432019,-500.0,0.00020272,2]
[346237833,1734797432029,-500.0,0.00020272,2]
[346237834,1734797432038,-500.0,0.00020272,2]
[346237835,1734797432047,-500.0,0.00020272,2]
[346237836,1734797432057,-500.0,0.00020272,2]
[346237837,1734797432066,-500.0,0.00020272,2]
[346237838,1734797432075,-501.82488837,0.00020272,2]
[346237839,1734797432085,-500.0,0.00020272,2]
[346237840,1734797432094,-500.0,0.00020272,2]
[346237841,1734797432103,-575.49,0.00020272,2]
[346237842,1734797432112,-500.0,0.00020272,2]
[346237843,1734797432121,-500.0,0.00020272,2]
[346237844,1734797432130,-500.0,0.00020272,2]
[346237845,1734797432139,-500.0,0.00020272,2]
[346237846,1734797432149,-500.0,0.00020272,2]
[346237847,1734797432158,-500.0,0.00020272,2]
[346237848,1734797432167,-500.0,0.00020272,2]
[346237849,1734797432176,-500.0,0.00020272,2]
[346237850,1734797432185,-500.0,0.00020272,2]
[346237852,1734797432194,-500.0,0.00020272,2]
[346237854,1734797432204,-500.0,0.00020272,2]
[346237855,1734797432212,-611.52,0.00020272,2]
[346237857,1734797432222,-500.0,0.00020272,2]
[346237859,1734797432231,-500.0,0.00020272,2]